fUST/lending_fUST_20251030
["ID","MTS","AMOUNT","RATE_DAILY","PERIOD"]
[392638564,1761768633348,-166.39327118,0.00029194,2]
[392638565,1761768633358,-960.0,0.00029217,2]
[392638566,1761768633367,-199.0,0.00029315,13]
[392638568,1761768633377,-500.0,0.00029356,5]
[392638569,1761768633386,-823.0,0.00029545,2]
[392638570,1761768633396,-199.0,0.00029589,14]
[392638572,1761768633405,-1060.0,0.00029765,2]
[392638573,1761768633415,-199.0,0.00029863,15]
[392638574,1761768633424,-500.0,0.00029863,5]
[392638576,1761768633433,-178.10615922,0.00029889,110]
[392638577,1761768633443,-1000.0,0.00029904,5]
[392638578,1761768633452,-412.0,0.00029953,2]
[392638579,1761768633462,-271.94,0.0002998,10]
[392638581,1761768633470,-465.67,0.0002998,10]
[392638582,1761768633480,-388.06,0.0002998,10]
[392638583,1761768633489,-703.56,0.0002998,3]
[392638585,1761768633499,-500.0,0.00029982,2]
[392638586,1761768633508,-71793.2377982,0.0002999,2]
[392638587,1761768633517,-2716.23,0.0003,2]
[392638589,1761768633526,-2000.0,0.0003,2]
[392638590,1761768633540,-208.55675,0.0003,2]
[392638591,1761768633549,-500.0,0.00030037,2]
[392638593,1761768633559,-500.0,0.00030092,2]
[392638594,1761768633571,-199.0,0.00030136,16]
[392638595,1761768633580,-500.0,0.00030137,5]
[392638597,1761768633591,-582.0,0.00030146,2]
[392638598,1761768633603,-280.82187015,0.00030275,2]
[392638599,1761768633613,-1160.0,0.00030313,2]
[392638601,1761768633622,-199.0,0.0003041,17]
[392638602,1761768633631,-1500.0,0.00030451,5]
[392638603,1761768633642,-3587.42954227,0.00030534,2]
[392638605,1761768633653,-1999.0,0.00030612,2]
[392638606,1761768633663,-151.0,0.00030616,2]
[392638607,1761768633673,-151.0,0.00030616,2]
[392638609,1761768633683,-151.0,0.00030616,2]
[392638610,1761768633692,-151.0,0.00030616,2]
[392638611,1761768633703,-151.0,0.00030616,2]
[392638613,1761768633712,-151.0,0.00030616,2]
[392638614,1761768633721,-151.0,0.00030616,2]
[392638615,1761768633732,-151.0,0.00030616,2]
[392638617,1761768633743,-151.0,0.00030616,2]
[392638618,1761768633753,-151.0,0.00030616,2]
[392638619,1761768633762,-151.0,0.00030616,2]
[392638621,1761768633771,-151.0,0.00030616,2]
[392638622,1761768633781,-151.0,0.00030616,2]
[392638623,1761768633791,-151.0,0.00030616,2]
[392638624,1761768633800,-151.0,0.00030616,2]
[392638626,1761768633810,-151.0,0.00030616,2]
[392638627,1761768633819,-151.0,0.00030616,2]
[392638628,1761768633829,-151.0,0.00030616,2]
[392638630,1761768633839,-151.0,0.00030616,2]
[392638631,1761768633849,-151.0,0.00030616,2]
[392638632,1761768633859,-151.0,0.00030616,2]
[392638634,1761768633867,-151.0,0.00030616,2]
[392638635,1761768633877,-107337.80339025,0.00030624,2]
[392638766,1761768638481,-500.0,0.00029544,2]
[392638767,1761768638492,-510.73359936,0.00029544,2]
[392638769,1761768638502,-500.0,0.00029544,2]
[392638770,1761768638511,-500.0,0.00029544,2]
[392638771,1761768638522,-500.0,0.00029544,2]
[392638772,1761768638532,-500.0,0.00029544,2]
[392638774,1761768638541,-500.0,0.00029544,2]
[392638775,1761768638550,-500.0,0.00029544,2]
[392638776,1761768638560,-52.69091074,0.00030614,10]
[392638778,1761768638571,-270.68908926,0.00030614,10]
[392638779,1761768638580,-151.0,0.00030616,2]
[392638780,1761768638589,-151.0,0.00030616,2]
[392638782,1761768638601,-27966.5399737,0.00030624,2]
[392638783,1761768638613,-8282.13223205,0.00030624,2]
[392638784,1761768638623,-633.0,0.00030644,2]
[392638786,1761768638632,-984.0,0.00030644,2]
[392638787,1761768638642,-2167.0,0.00030644,2]
[392638788,1761768638654,-199.0,0.00030684,18]
[392638790,1761768638663,-344.09,0.00030825,2]
[392638791,1761768638672,-1260.0,0.00030861,2]
[392638792,1761768638681,-199.0,0.00030958,19]
[392638793,1761768638691,-2009.26969229,0.00030999,5]
[392638795,1761768638701,-301.83438913,0.00031,4]
[392638796,1761768638713,-1698.16561087,0.00031,4]
[392638798,1761768638722,-199.0,0.00031232,20]
[392638799,1761768638731,-3587.42954227,0.00031251,2]
[392638800,1761768638740,-1360.0,0.00031409,2]
[392638801,1761768638749,-199.0,0.00031506,21]
[392638803,1761768638759,-166.39327118,0.00031731,2]
[392638804,1761768638769,-199.0,0.0003178,22]
[392638805,1761768638778,-1460.0,0.00031957,2]
[392638807,1761768638788,-2177.01157568,0.00031967,2]
[392638808,1761768638800,-1410.41796659,0.00031967,2]
[392638809,1761768638809,-1999.0,0.00031982,4]
[392638811,1761768638818,-918.0,0.00032,7]
[392638812,1761768638828,-199.0,0.00032054,23]
[392638813,1761768638837,-1152.0,0.0003207,2]
[392638815,1761768638847,-313.64520562,0.00032275,2]
[392638816,1761768638857,-199.0,0.00032328,24]
[392638817,1761768638867,-660.0,0.00032505,2]
[392638819,1761768638876,-199.0,0.00032602,25]
[392638820,1761768638886,-393.25,0.00032638,2]
[392638821,1761768638896,-3587.42954227,0.00032684,2]
[392638822,1761768638906,-168.0,0.00032865,2]
[392638824,1761768638916,-199.0,0.00032876,26]
[392638825,1761768638927,-199.0,0.0003315,27]
[392638826,1761768638937,-1803.91475242,0.00033352,120]
[392638828,1761768638947,-1827.79907021,0.000334,2]
[392638829,1761768638959,-1759.63047206,0.000334,2]
[392638830,1761768638969,-177.75,0.00033424,28]
[392638832,1761768638979,-6555.01536965,0.00033457,2]
[392638885,1761768640765,-5000.0,0.00024953,2]
[392638891,1761768640899,-2456.99890206,0.00033457,2]
[392638893,1761768640915,-108575.73704907,0.00033457,2]
[392638895,1761768640936,-7596.76691376,0.00033457,2]
[392638896,1761768640948,-649.65339507,0.00033457,2]
[392639020,1761768643687,-17752.30396639,0.00033457,2]
[392639021,1761768643696,-500.0,0.00033473,5]
[392639023,1761768643705,-150.0,0.00033473,5]
[392639024,1761768643714,-500.0,0.00033473,5]
[392639025,1761768643724,-500.0,0.00033473,5]
[392639027,1761768643734,-500.0,0.00033473,5]
[392639028,1761768643743,-500.0,0.00033473,5]
[392639029,1761768643752,-500.0,0.00033473,5]
[392639030,1761768643762,-32274.44279038,0.00033478,2]
[392639032,1761768643848,-74197.60502184,0.00033478,2]
[392639121,1761768646706,-269.48,0.00033448,10]
[392639122,1761768646716,-4559.74492376,0.00033478,2]
[392647294,1761769547341,734.608859,0.00013699,2]
[392647301,1761769635116,-475.97434808,0.00019986,2]
[392647304,1761769642255,-390.5042387,0.00019786,2]
[392647305,1761769642282,-1386.60386756,0.00019786,2]
[392647306,1761769644176,-269.2638976,0.00019786,2]
[392647309,1761769721464,2346.53351593,0.0001,2]
[392647311,1761769825093,887.78908151,0.00019212,2]
[392647400,1761769833394,5000.0,0.00019212,2]
[392647401,1761769835310,-257.29924645,0.00019587,2]
[392647402,1761769835320,-1426.5490142,0.00019588,2]
[392647403,1761769835331,-167.09576201,0.00019687,2]
[392647404,1761769835340,-734.608859,0.00020187,2]
[392647405,1761769835350,-197.17299918,0.00021687,2]
[392647406,1761769835361,-227.25023634,0.00023687,2]
[392647407,1761769835371,-222.22222222,0.00025463,2]
[392647408,1761769835381,-257.3274735,0.00025687,2]
[392647409,1761769835390,-300.0,0.00025999,2]
[392647410,1761769835399,-2980.69585976,0.00026,30]
[392647411,1761769835409,-222.22222222,0.00026535,56]
[392647412,1761769835418,-734.608859,0.00026676,2]
[392647414,1761769835427,-222.22222222,0.00027608,110]
[392647416,1761769835438,-287.40471066,0.00027687,2]
[392647417,1761769835447,-420.0,0.00028137,2]
[392647418,1761769835456,-194.775161,0.00028219,2]
[392647419,1761769835465,-537.36,0.00029001,2]
[392647420,1761769835474,-633.0,0.00029001,2]
[392647422,1761769835484,-211.2004733,0.00029416,2]
[392647424,1761769835493,-154.20398141,0.0002947,20]
[392647425,1761769835502,-316.6292574,0.0002954,2]
[392647426,1761769835512,-155.95,0.0002955,10]
[392647427,1761769835521,-198.58,0.0002955,10]
[392647428,1761769835530,-165.48,0.0002955,10]
[392647429,1761769835542,-827.43,0.0002955,10]
[392647430,1761769835551,-500.0,0.00029559,2]
[392647431,1761769835560,-500.0,0.00029559,2]
[392647432,1761769835569,-500.0,0.00029559,2]
[392647433,1761769835578,-500.0,0.00029559,2]
[392647434,1761769835588,-500.0,0.00029559,2]
[392647435,1761769835600,-307.51351955,0.00029559,2]
[392647436,1761769835609,-500.0,0.00029559,2]
[392647437,1761769835619,-500.0,0.00029559,2]
[392647438,1761769835627,-159.12309785,0.00029559,2]
[392647439,1761769835636,-607.19564307,0.00029559,2]
[392647440,1761769835645,-500.0,0.00029559,2]
[392647441,1761769835654,-500.0,0.00029559,2]
[392647442,1761769835663,-95000.0,0.0002956,2]
[392647443,1761769835673,-166.39327118,0.00029587,2]
[392647444,1761769835682,-317.48194783,0.00029687,2]
[392647445,1761769835693,-2086.97706884,0.0003,2]
[392647446,1761769835702,-143729.81348481,0.0003,20]
[392647447,1761769835711,-2030.92190287,0.0003,2]
[392647448,1761769835720,-13147.92198414,0.0003,2]
[392647449,1761769835729,-165.46,0.0003,5]
[392647450,1761769835738,-10813.13,0.0003,7]
[392647451,1761769835748,-200.0,0.000301,7]
[392647452,1761769835757,-52525.18051213,0.0003012,7]
[392647453,1761769835766,-486.0,0.0003045,2]
[392647454,1761769835776,-200.0,0.0003091,7]
[392647455,1761769835785,-200.0,0.00031,7]
[392647456,1761769835794,-347.55918499,0.00031687,2]
[392647457,1761769835803,-186.89,0.0003191,7]
[392647458,1761769835812,-200.0,0.000321,7]
[392647459,1761769835821,-200.0,0.000331,7]
[392647460,1761769835831,-734.608859,0.00033165,2]
[392647461,1761769835840,-1515.7940801,0.00033167,2]
[392647462,1761769835849,-3469.8015413,0.00033167,2]
[392647463,1761769835858,-204.009,0.00033167,34]
[392647464,1761769835867,-213.984633,0.00033167,2]
[392647465,1761769835876,-533.82137601,0.00033301,2]
[392647466,1761769835886,-151.0,0.00033348,2]
[392647467,1761769835895,-151.0,0.00033348,2]
[392647468,1761769835904,-151.0,0.00033348,2]
[392647469,1761769835914,-151.0,0.00033348,2]
[392647470,1761769835923,-151.0,0.00033348,2]
[392647471,1761769835932,-151.0,0.00033348,2]
[392647472,1761769835943,-151.0,0.00033348,2]
[392647473,1761769835952,-151.0,0.00033348,2]
[392647474,1761769835961,-151.0,0.00033348,2]
[392647475,1761769835972,-151.0,0.00033348,2]
[392647476,1761769835984,-151.0,0.00033348,2]
[392647477,1761769835994,-151.0,0.00033348,2]
[392647478,1761769836004,-151.0,0.00033348,2]
[392647479,1761769836012,-151.0,0.00033348,2]
[392647480,1761769836023,-151.0,0.00033348,2]
[392647481,1761769836032,-151.0,0.00033348,2]
[392647482,1761769836041,-151.0,0.00033348,2]
[392647483,1761769836051,-151.0,0.00033348,2]
[392647484,1761769836061,-151.0,0.00033348,2]
[392647485,1761769836070,-151.0,0.00033348,2]
[392647486,1761769836079,-53844.9283486,0.00033357,2]
[392647487,1761769836088,-269224.641743,0.00033368,2]
[392647488,1761769836097,-500.0,0.00033373,5]
[392647489,1761769836106,-500.0,0.00033373,5]
[392647490,1761769836116,-500.0,0.00033373,5]
[392647491,1761769836126,-500.0,0.00033373,5]
[392647492,1761769836135,-370000.0,0.00033378,2]
[392647493,1761769836145,-233.08885285,0.00033472,5]
[392647494,1761769836154,-151.0,0.00033472,5]
[392647495,1761769836163,-151.0,0.00033472,5]
[392647496,1761769836173,-1000.0,0.00033472,5]
[392647497,1761769836182,-500.0,0.00033472,5]
[392647498,1761769836193,-185.02695779,0.00033472,5]
[392647499,1761769836203,-250.0,0.00033472,5]
[392647500,1761769836212,-174.61919141,0.00033472,5]
[392647501,1761769836222,-250.0,0.00033472,5]
[392647502,1761769836231,-168.0,0.00033507,2]
[392647503,1761769836242,-168.0,0.00033564,2]
[392647504,1761769836251,-1529.393001,0.000336,13]
[392647505,1761769836260,-206.032677,0.000336,2]
[392647506,1761769836269,-168.0,0.00033622,2]
[392647507,1761769836279,-303.97892701,0.00033687,2]
[392647508,1761769836289,-1214.69979233,0.00033687,2]
[392647509,1761769836299,-377.63642215,0.00033687,120]
[392647510,1761769836308,-168.0,0.00033728,2]
[392647511,1761769836318,-414.60225012,0.00033766,120]
[392647512,1761769836327,-209.98297603,0.00033766,120]
[392647513,1761769836336,-500.0,0.00033766,120]
[392647514,1761769836345,-225.21880448,0.00033766,120]
[392647515,1761769836354,-199.52534277,0.00033766,120]
[392647516,1761769836363,-218.85623396,0.00033766,120]
[392647517,1761769836372,-500.0,0.00033766,120]
[392647518,1761769836381,-164.2643105,0.00033766,120]
[392647519,1761769836391,-500.0,0.00033766,120]
[392647520,1761769836400,-229.8743254,0.00033766,120]
[392647521,1761769836409,-310.31807726,0.00033766,120]
[392647522,1761769836418,-222.53999091,0.00033766,120]
[392647523,1761769836427,-443.7208532,0.00033766,120]
[392647524,1761769836436,-208.35979215,0.00033766,120]
[392647525,1761769836445,-235.12868779,0.00033766,120]
[392647526,1761769836453,-305.6750953,0.00033766,120]
[392647527,1761769836462,-255.73843306,0.00033766,120]
[392647528,1761769836471,-347.15129632,0.00033766,120]
[392647529,1761769836480,-500.0,0.00033766,120]
[392647530,1761769836489,-500.0,0.00033766,120]
[392647531,1761769836499,-374.38007452,0.00033766,120]
[392647532,1761769836508,-495.90907792,0.00033766,120]
[392647533,1761769836517,-500.0,0.00033766,120]
[392647534,1761769836525,-224.01043387,0.00033766,120]
[392647535,1761769836534,-427.45011105,0.00033766,120]
[392647536,1761769836543,-192.48645907,0.00033766,120]
[392647537,1761769836552,-500.0,0.00033766,120]
[392647538,1761769836562,-237.38378243,0.00033766,120]
[392647539,1761769836570,-261.15607341,0.00033766,120]
[392647540,1761769836581,-500.0,0.00033766,7]
[392647541,1761769836590,-500.0,0.00033766,120]
[392647542,1761769836599,-528.16277677,0.00033766,120]
[392647543,1761769836608,-195.20001391,0.00033766,120]
[392647544,1761769836616,-218.47679941,0.00033766,120]
[392647545,1761769836625,-353.4328264,0.00033766,120]
[392647546,1761769836635,-500.0,0.00033766,120]
[392647547,1761769836644,-476.64485801,0.00033766,120]
[392647548,1761769836654,-384.22609972,0.00033766,120]
[392647549,1761769836663,-152.86857846,0.00033766,100]
[392647550,1761769836672,-384.2152845,0.00033766,120]
[392647551,1761769836682,-387.37913801,0.00033766,120]
[392647552,1761769836693,-204.85090527,0.00033766,120]
[392647553,1761769836702,-281.40735665,0.00033766,120]
[392647554,1761769836711,-383.9352096,0.00033766,120]
[392647555,1761769836721,-380.85331625,0.00033766,120]
[392647556,1761769836731,-391.5357291,0.00033766,120]
[392647557,1761769836740,-500.0,0.00033766,120]
[392647558,1761769836750,-381.48414187,0.00033766,120]
[392647559,1761769836759,-361.08894123,0.00033766,120]
[392647560,1761769836768,-308.25512341,0.00033766,120]
[392647561,1761769836778,-491.14265081,0.00033766,5]
[392647562,1761769836789,-233.39601973,0.00033766,120]
[392647563,1761769836798,-500.0,0.00033766,120]
[392647564,1761769836807,-264.47106937,0.00033766,120]
[392647565,1761769836817,-468.15890753,0.00033766,120]
[392647566,1761769836826,-465.2051283,0.00033766,120]
[392647567,1761769836835,-280.51710492,0.00033766,120]
[392647568,1761769836844,-397.51300505,0.00033766,120]
[392647569,1761769836855,-383.26188039,0.00033766,120]
[392647570,1761769836864,-386.5340649,0.00033766,120]
[392647571,1761769836874,-183.70728979,0.00033766,120]
[392647572,1761769836884,-222.06809218,0.00033766,120]
[392647573,1761769836893,-281.42143024,0.00033766,120]
[392647574,1761769836902,-509.52395148,0.00033766,120]
[392647575,1761769836912,-322.29987435,0.00033766,120]
[392647576,1761769836921,-486.23647,0.00033766,120]
[392647577,1761769836930,-378.22950591,0.00033766,120]
[392647578,1761769836941,-415.57821034,0.00033766,120]
[392647579,1761769836951,-283.42079311,0.00033766,120]
[392647580,1761769836960,-339.12217062,0.00033766,120]
[392647581,1761769836972,-246.29275562,0.00033766,120]
[392647582,1761769836982,-397.63327559,0.00033766,120]
[392647583,1761769836991,-500.0,0.00033766,120]
[392647584,1761769837000,-397.20147701,0.00033766,120]
[392647585,1761769837010,-160.39539873,0.00033766,120]
[392647586,1761769837019,-172.59171225,0.00033766,120]
[392647587,1761769837155,-173.48982923,0.00033766,120]
[392647588,1761769837165,-448.52371845,0.00033766,120]
[392647589,1761769837176,-500.0,0.00033766,120]
[392647590,1761769837186,-500.0,0.00033766,120]
[392647591,1761769837195,-500.0,0.00033766,120]
[392647592,1761769837204,-500.0,0.00033766,120]
[392647593,1761769837213,-500.0,0.00033766,120]
[392647594,1761769837222,-500.0,0.00033766,120]
[392647595,1761769837232,-500.0,0.00033766,120]
[392647596,1761769837241,-500.0,0.00033766,120]
[392647597,1761769837250,-500.0,0.00033766,120]
[392647598,1761769837259,-554.26,0.00033766,120]
[392647599,1761769837268,-410.249458,0.00033766,120]
[392647600,1761769837277,-413.55938269,0.00033766,120]
[392647601,1761769837286,-500.0,0.00033766,120]
[392647602,1761769837295,-500.0,0.00033766,120]
[392647603,1761769837304,-500.0,0.00033766,120]
[392647604,1761769837313,-264.0575794,0.00033766,120]
[392647605,1761769837323,-500.0,0.00033766,120]
[392647606,1761769837332,-500.0,0.00033766,120]
[392647607,1761769837341,-500.0,0.00033766,120]
[392647608,1761769837350,-500.0,0.00033766,120]
[392647609,1761769837359,-500.0,0.00033766,120]
[392647610,1761769837369,-500.0,0.00033766,120]
[392647611,1761769837378,-500.0,0.00033766,120]
[392647612,1761769837387,-500.0,0.00033766,120]
[392647613,1761769837397,-500.0,0.00033766,120]
[392647614,1761769837406,-500.0,0.00033766,120]
[392647615,1761769837415,-500.0,0.00033766,120]
[392647616,1761769837424,-500.0,0.00033766,120]
[392647617,1761769837433,-500.0,0.00033766,120]
[392647618,1761769837443,-500.0,0.00033766,120]
[392647620,1761769837452,-500.0,0.00033766,120]
[392647622,1761769837461,-367.61855805,0.00033766,120]
[392647623,1761769837470,-500.0,0.00033766,120]
[392647624,1761769837479,-500.0,0.00033766,120]
[392647625,1761769837487,-301.96038738,0.00033766,120]
[392647626,1761769837496,-500.0,0.00033766,120]
[392647627,1761769837506,-500.0,0.00033766,120]
[392647628,1761769837514,-375.9286683,0.00033766,120]
[392647629,1761769837524,-500.0,0.00033766,120]
[392647630,1761769837533,-501.71167529,0.00033766,120]
[392647631,1761769837543,-500.0,0.00033766,120]
[392647632,1761769837552,-500.0,0.00033766,120]
[392647633,1761769837561,-264.11816588,0.00033766,120]
[392647635,1761769837570,-310.67247293,0.00033766,120]
[392647637,1761769837579,-500.0,0.00033766,120]
[392647640,1761769837588,-500.75269417,0.00033766,120]
[392647641,1761769837597,-500.0,0.00033766,120]
[392647644,1761769837606,-501.36240019,0.00033766,120]
[392647646,1761769837616,-500.0,0.00033766,120]
[392647647,1761769837625,-500.0,0.00033766,120]
[392647649,1761769837635,-500.0,0.00033766,120]
[392647651,1761769837644,-500.0,0.00033766,120]
[392647653,1761769837653,-500.0,0.00033766,120]
[392647655,1761769837662,-500.0,0.00033766,120]
[392647657,1761769837671,-500.0,0.00033766,120]
[392647659,1761769837681,-500.0,0.00033766,120]
[392647661,1761769837690,-500.0,0.00033766,120]
[392647663,1761769837699,-500.0,0.00033766,120]
[392647665,1761769837708,-500.0,0.00033766,120]
[392647667,1761769837717,-554.28185762,0.00033766,120]
[392647669,1761769837727,-500.42800895,0.00033766,2]
[392647671,1761769837737,-500.0,0.00033766,120]
[392647673,1761769837746,-500.93605628,0.00033766,120]
[392647675,1761769837754,-500.0,0.00033766,2]
[392647677,1761769837763,-302.24699533,0.00033766,120]
[392647679,1761769837772,-500.7387426,0.00033766,2]
[392647681,1761769837781,-500.0,0.00033766,120]
[392647683,1761769837791,-500.40731675,0.00033766,120]
[392647685,1761769837799,-500.0,0.00033766,120]
[392647687,1761769837808,-500.61025381,0.00033766,120]
[392647689,1761769837817,-500.0,0.00033766,120]
[392647691,1761769837827,-501.00600394,0.00033766,120]
[392647693,1761769837836,-500.0,0.00033766,120]
[392647695,1761769837845,-500.0,0.00033766,120]
[392647697,1761769837854,-501.02373656,0.00033766,120]
[392647699,1761769837863,-500.0,0.00033766,120]
[392647701,1761769837872,-607.23725101,0.00033766,120]
[392647703,1761769837882,-491.7243919,0.00033766,2]
[392647705,1761769837893,-285.8611888,0.00033766,120]
[392647707,1761769837902,-500.0,0.00033766,2]
[392647709,1761769837911,-500.0,0.00033766,120]
[392647711,1761769837920,-500.0,0.00033766,120]
[392647713,1761769837929,-393.45254403,0.00033766,120]
[392647715,1761769837939,-500.0,0.00033766,120]
[392647717,1761769837948,-500.0,0.00033766,120]
[392647719,1761769837957,-500.0,0.00033766,120]
[392647721,1761769837966,-565.26,0.00033766,120]
[392647722,1761769837975,-326.35246607,0.00033766,2]
[392647724,1761769837984,-500.0,0.00033766,2]
[392647725,1761769837997,-500.0,0.00033766,120]
[392647726,1761769838005,-343.85267406,0.00033766,120]
[392647727,1761769838014,-376.86376356,0.00033766,120]
[392647728,1761769838024,-161.19190456,0.00033766,120]
[392647729,1761769838033,-608.39,0.00033766,120]
[392647730,1761769838043,-632.68,0.00033766,120]
[392647731,1761769838052,-500.0,0.00033766,120]
[392647732,1761769838061,-355.85537143,0.00033766,120]
[392647733,1761769838072,-312.49272217,0.00033766,120]
[392647734,1761769838082,-182.21645852,0.00033766,120]
[392647735,1761769838091,-500.0,0.00033766,120]
[392647736,1761769838100,-500.0,0.00033766,120]
[392647737,1761769838109,-501.35691108,0.00033766,120]
[392647738,1761769838118,-281.64495271,0.00033766,120]
[392647739,1761769838127,-177.44813654,0.00033766,120]
[392647740,1761769838136,-381.271218,0.00033766,120]
[392647741,1761769838144,-500.0,0.00033766,120]
[392647742,1761769838153,-500.0,0.00033766,120]
[392647743,1761769838162,-389.00187054,0.00033766,120]
[392647744,1761769838171,-204.53086713,0.00033766,120]
[392647745,1761769838180,-500.0,0.00033766,120]
[392647746,1761769838190,-500.0,0.00033766,120]
[392647747,1761769838199,-500.0,0.00033766,120]
[392647748,1761769838209,-275.97635961,0.00033766,120]
[392647749,1761769838219,-505.26522106,0.00033766,120]
[392647750,1761769838228,-500.0,0.00033766,120]
[392647751,1761769838238,-500.65546365,0.00033766,120]
[392647752,1761769838248,-489.85060281,0.00033766,120]
[392647753,1761769838258,-500.0,0.00033766,120]
[392647754,1761769838267,-500.0,0.00033766,120]
[392647755,1761769838277,-501.44844199,0.00033766,120]
[392647756,1761769838286,-471.04441665,0.00033766,120]
[392647757,1761769838296,-500.0,0.00033766,120]
[392647758,1761769838305,-500.0,0.00033766,120]
[392647759,1761769838314,-480.14,0.00033766,120]
[392647760,1761769838324,-360.92931251,0.00033766,120]
[392647761,1761769838333,-500.0,0.00033766,120]
[392647762,1761769838343,-500.43363821,0.00033766,120]
[392647763,1761769838352,-500.0,0.00033766,120]
[392647764,1761769838362,-389.90767542,0.00033766,120]
[392647765,1761769838373,-500.30127473,0.00033766,12]
[392647766,1761769838382,-500.0,0.00033766,30]
[392647767,1761769838392,-420.94893177,0.00033766,120]
[392647768,1761769838402,-292.44123688,0.00033766,120]
[392647769,1761769838412,-500.0,0.00033766,120]
[392647770,1761769838421,-500.73622441,0.00033766,120]
[392647771,1761769838431,-500.0,0.00033766,120]
[392647772,1761769838441,-456.58174949,0.00033766,120]
[392647773,1761769838451,-500.0,0.00033766,120]
[392647774,1761769838461,-500.0,0.00033766,120]
[392647775,1761769838471,-500.0,0.00033766,120]
[392647776,1761769838481,-500.0,0.00033766,120]
[392647777,1761769838492,-267.48724999,0.00033766,120]
[392647778,1761769838501,-500.0,0.00033766,120]
[392647779,1761769838511,-503.02000042,0.00033766,120]
[392647780,1761769838521,-500.0,0.00033766,120]
[392647781,1761769838531,-500.0,0.00033766,120]
[392647782,1761769838540,-500.0,0.00033766,120]
[392647783,1761769838549,-500.0,0.00033766,120]
[392647784,1761769838558,-500.0,0.00033766,120]
[392647785,1761769838568,-500.0,0.00033766,120]
[392647786,1761769838578,-500.0,0.00033766,120]
[392647787,1761769838587,-500.0,0.00033766,120]
[392647788,1761769838596,-500.0,0.00033766,120]
[392647789,1761769838605,-500.0,0.00033766,120]
[392647790,1761769838615,-500.0,0.00033766,120]
[392647791,1761769838624,-500.0,0.00033766,120]
[392647792,1761769838634,-500.0,0.00033766,120]
[392647793,1761769838643,-246.58,0.00033766,120]
[392647794,1761769838652,-500.0,0.00033766,120]
[392647795,1761769838661,-500.0,0.00033766,120]
[392647796,1761769838671,-500.0,0.00033766,120]
[392647797,1761769838680,-500.0,0.00033766,120]
[392647798,1761769838690,-500.0,0.00033766,120]
[392647799,1761769838700,-500.0,0.00033766,120]
[392647800,1761769838710,-500.0,0.00033766,120]
[392647801,1761769838719,-500.0,0.00033766,120]
[392647802,1761769838729,-500.0,0.00033766,120]
[392647803,1761769838738,-595.34,0.00033766,120]
[392647804,1761769838748,-500.0,0.00033766,120]
[392647805,1761769838757,-500.31306862,0.00033766,120]
[392647806,1761769838767,-460.62514168,0.00033766,120]
[392647807,1761769838777,-198.23182065,0.00033766,120]
[392647808,1761769838786,-500.0,0.00033766,120]
[392647809,1761769838796,-502.03853787,0.00033766,120]
[392647810,1761769838805,-346.47400831,0.00033766,120]
[392647811,1761769838815,-500.0,0.00033766,120]
[392647812,1761769838824,-500.0,0.00033766,120]
[392647813,1761769838833,-500.0,0.00033766,120]
[392647814,1761769838842,-606.16719227,0.00033766,120]
[392647815,1761769838852,-501.53991971,0.00033766,120]
[392647816,1761769838862,-500.0,0.00033766,120]
[392647817,1761769838871,-500.0,0.00033766,120]
[392647818,1761769838880,-500.0,0.00033766,120]
[392647819,1761769838889,-500.0,0.00033766,120]
[392647820,1761769838898,-503.32342047,0.00033766,120]